fUSD/lending_fUSD_20260622
["ID","MTS","AMOUNT","RATE_DAILY","PERIOD"]
[426033793,1782126641000,-10496.23265428,0.0001439,2]
[426033791,1782126641000,-162.27,0.00014384,2]
[426033790,1782126641000,-350.0,0.00014309,2]
[426033794,1782126641000,-3620.754878,0.00014429,2]
[426033796,1782126641000,-91147.3619885,0.00014489,2]
[426033797,1782126641000,-3174.8685643,0.00014489,2]
[426033795,1782126641000,-350.0,0.00014487,2]
[426033798,1782126641000,-2072.92,0.00014497,2]
[426033801,1782126641000,-185.66,0.00014546,2]
[426033832,1782126641000,-180.41387865,0.00015,2]
[426033807,1782126641000,-500.0,0.00014986,2]
[426033834,1782126641000,-151.29119052,0.00015,2]
[426033897,1782126641000,-1407.12,0.00015748,2]
[426033906,1782126641000,-736.0,0.00015978,2]
[426033904,1782126641000,-350.0,0.00015976,2]
[426033908,1782126641000,-300.0,0.00016,2]
[426033910,1782126641000,-216.35787048,0.00016,3]
[426033912,1782126641000,-350.0,0.00016044,2]
[426033914,1782126641000,-11834.77204959,0.00016069,2]
[426033916,1782126641000,-3908.99,0.00016116,2]
[426033934,1782126641000,-216.0,0.00016438,2]
[426033930,1782126641000,-166.66,0.00016404,2]
[426033932,1782126641000,-436.1,0.00016438,2]
[426033918,1782126641000,-9999.99,0.00016116,2]
[426033922,1782126641000,-196.08,0.00016238,2]
[426033924,1782126641000,-1555.5,0.00016336,2]
[426033920,1782126641000,-350.0,0.00016193,2]
[426033928,1782126641000,-350.0,0.00016359,2]
[426033926,1782126641000,-168.96,0.00016346,2]
[426033936,1782126641000,-216.0,0.00016438,2]
[426033940,1782126641000,-500.0,0.00016438,2]
[426033938,1782126641000,-500.0,0.00016438,2]
[426033941,1782126641000,-500.0,0.00016438,2]
[426033943,1782126641000,-500.0,0.00016438,2]
[426033945,1782126641000,-500.0,0.00016438,2]
[426033942,1782126641000,-500.0,0.00016438,2]
[426033947,1782126641000,-500.0,0.00016438,2]
[426033946,1782126641000,-500.0,0.00016438,2]
[426033837,1782126641000,-706.1482437,0.00015,2]
[426033902,1782126641000,-166.66,0.00015926,2]
[426033894,1782126641000,-166.27,0.00015696,2]
[426033944,1782126641000,-500.0,0.00016438,2]
[426033898,1782126641000,-1500.0,0.00015788,2]
[426033900,1782126641000,-16575.22346195,0.00015823,2]
[426033845,1782126641000,-1004.72682314,0.00015,2]
[426033841,1782126641000,-706.1482437,0.00015,2]
[426033854,1782126641000,-160.58523776,0.00015,7]
[426033849,1782126641000,-500.0,0.00015,2]
[426033843,1782126641000,-1000.0,0.00015,2]
[426033847,1782126641000,-500.0,0.00015,2]
[426033852,1782126641000,-500.0,0.00015,2]
[426033856,1782126641000,-150.0,0.00015068,2]
[426033858,1782126641000,-2100.0,0.00015094,2]
[426033860,1782126641000,-750.0,0.00015094,7]
[426033862,1782126641000,-1123.52,0.000151,2]
[426033864,1782126641000,-630.21,0.000151,2]
[426033839,1782126641000,-706.1482437,0.00015,2]
[426033880,1782126641000,-11834.77204959,0.00015361,2]
[426033893,1782126641000,-187.20682,0.000156,2]
[426033891,1782126641000,-350.0,0.00015486,2]
[426033889,1782126641000,-820.21,0.00015464,2]
[426033886,1782126641000,-166.66,0.00015448,2]
[426033878,1782126641000,-837.26431755,0.00015238,2]
[426033870,1782126641000,-350.0,0.00015174,2]
[426033884,1782126641000,-350.0,0.0001542,2]
[426033872,1782126641000,-350.0,0.00015183,2]
[426033868,1782126641000,-614.95628549,0.00015155,2]
[426033882,1782126641000,-187.20683,0.000154,2]
[426033876,1782126641000,-350.0,0.00015222,2]
[426033866,1782126641000,-197.24211976,0.0001515,2]
[426033874,1782126641000,-187.20683,0.000152,2]
[426033989,1782126642000,-3808.8,0.00017572,2]
[426033988,1782126642000,-11834.77204959,0.00017484,2]
[426033987,1782126642000,-1672.7364795,0.00017432,2]
[426033986,1782126642000,-1252.0,0.00017379,2]
[426033977,1782126642000,-552.0,0.00016795,2]
[426033978,1782126642000,-201.0,0.0001688,3]
[426033985,1782126642000,-162.27,0.00017261,2]
[426033984,1782126642000,-16575.22346195,0.00017257,2]
[426033981,1782126642000,-163.59,0.00017141,2]
[426033982,1782126642000,-1622.87936696,0.00017155,2]
[426033979,1782126642000,-166.66,0.00016883,2]
[426033990,1782126642000,-2000.0,0.000176,2]
[426033998,1782126642000,-10124.49857205,0.000181,2]
[426033993,1782126642000,-837.26431755,0.00017971,2]
[426033995,1782126642000,-350.0,0.00018,2]
[426033992,1782126642000,-304.63085166,0.0001789,2]
[426033994,1782126642000,-1734.62772924,0.0001798,2]
[426033991,1782126642000,-166.27,0.00017789,2]
[426033996,1782126642000,-1844.21112014,0.000181,2]
[426033999,1782126642000,-1119.41442965,0.000181,2]
[426034001,1782126642000,-170.1,0.00018141,2]
[426034000,1782126642000,-668.93255661,0.000181,2]
[426034002,1782126642000,-185.66,0.00018183,2]
[426034003,1782126642000,-11834.77204959,0.00018192,2]
[426033983,1782126642000,-176.90076653,0.00017224,2]
[426033997,1782126642000,-204.4,0.000181,2]
[426033980,1782126642000,-1613.0535,0.00016884,2]
[426033961,1782126642000,-500.0,0.00016438,2]
[426033973,1782126642000,-3808.8,0.00016474,2]
[426033948,1782126642000,-500.0,0.00016438,2]
[426033949,1782126642000,-500.0,0.00016438,2]
[426033951,1782126642000,-500.0,0.00016438,2]
[426033950,1782126642000,-500.0,0.00016438,2]
[426033952,1782126642000,-500.0,0.00016438,2]
[426033956,1782126642000,-500.0,0.00016438,2]
[426033959,1782126642000,-500.0,0.00016438,2]
[426033953,1782126642000,-500.0,0.00016438,2]
[426033954,1782126642000,-500.0,0.00016438,2]
[426033955,1782126642000,-500.0,0.00016438,2]
[426033960,1782126642000,-500.0,0.00016438,2]
[426033958,1782126642000,-500.0,0.00016438,2]
[426033974,1782126642000,-168.98,0.00016712,2]
[426033957,1782126642000,-500.0,0.00016438,2]
[426033964,1782126642000,-500.0,0.00016438,2]
[426033962,1782126642000,-500.0,0.00016438,2]
[426033970,1782126642000,-500.0,0.00016438,2]
[426033967,1782126642000,-500.0,0.00016438,2]
[426033966,1782126642000,-500.0,0.00016438,2]
[426033971,1782126642000,-500.0,0.00016438,2]
[426033968,1782126642000,-500.0,0.00016438,2]
[426033972,1782126642000,-500.0,0.00016438,2]
[426033969,1782126642000,-500.0,0.00016438,2]
[426033965,1782126642000,-500.0,0.00016438,2]
[426033976,1782126642000,-11834.77204959,0.00016777,2]
[426033975,1782126642000,-166.27,0.00016743,2]
[426033963,1782126642000,-500.0,0.00016438,2]
[426034008,1782126642000,-1119.41442965,0.000183,2]
[426034005,1782126642000,-1844.21112014,0.000183,2]
[426034006,1782126642000,-204.4,0.000183,2]
[426034043,1782126642000,-1844.21112014,0.00019,2]
[426034041,1782126642000,-3608.48760108,0.00019,2]
[426034040,1782126642000,-454073.66702923,0.00019,2]
[426034042,1782126642000,-1142.49758299,0.00019,2]
[426034038,1782126642000,-163.6599497,0.0001899,2]
[426034045,1782126642000,-1119.41442965,0.00019,2]
[426034047,1782126642000,-500.0,0.00019,2]
[426034046,1782126642000,-500.0,0.00019,2]
[426034050,1782126642000,-500.0,0.00019,2]
[426034048,1782126642000,-500.0,0.00019,2]
[426034051,1782126642000,-500.0,0.00019,2]
[426034055,1782126642000,-500.0,0.00019,2]
[426034052,1782126642000,-500.0,0.00019,2]
[426034053,1782126642000,-500.0,0.00019,2]
[426034054,1782126642000,-500.0,0.00019,2]
[426034058,1782126642000,-500.0,0.00019,2]
[426034056,1782126642000,-500.0,0.00019,2]
[426034057,1782126642000,-500.0,0.00019,2]
[426034059,1782126642000,-500.0,0.00019,2]
[426034060,1782126642000,-500.0,0.00019,2]
[426034061,1782126642000,-500.0,0.00019,2]
[426034063,1782126642000,-500.0,0.00019,2]
[426034062,1782126642000,-500.0,0.00019,2]
[426034064,1782126642000,-500.0,0.00019,2]
[426034010,1782126642000,-668.93255661,0.000183,2]
[426034044,1782126642000,-10124.49857205,0.00019,2]
[426034039,1782126642000,-232.22126356,0.00018997,2]
[426034049,1782126642000,-500.0,0.00019,2]
[426034036,1782126642000,-153.75535464,0.000189,2]
[426034037,1782126642000,-1739.0,0.00018918,2]
[426034011,1782126642000,-5969.75,0.00018356,2]
[426034007,1782126642000,-10124.49857205,0.000183,2]
[426034012,1782126642000,-231.4957237,0.000184,2]
[426034013,1782126642000,-231.4957237,0.000184,2]
[426034014,1782126642000,-231.4957237,0.000184,2]
[426034022,1782126642000,-500.0,0.00018507,2]
[426034020,1782126642000,-1119.41442965,0.000185,2]
[426034019,1782126642000,-10124.49857205,0.000185,2]
[426034018,1782126642000,-204.4,0.000185,2]
[426034015,1782126642000,-436.1,0.0001841,2]
[426034023,1782126642000,-1798.80895522,0.00018528,2]
[426034017,1782126642000,-1844.21112014,0.000185,2]
[426034004,1782126642000,-153.75535466,0.000182,2]
[426034025,1782126642000,-1844.21112014,0.000186,2]
[426034021,1782126642000,-668.93255661,0.000185,2]
[426034034,1782126642000,-166.27,0.00018835,2]
[426034033,1782126642000,-668.93255661,0.000188,2]
[426034031,1782126642000,-10124.49857205,0.000188,2]
[426034027,1782126642000,-1119.41442965,0.000186,2]
[426034029,1782126642000,-16575.22346195,0.00018691,2]
[426034035,1782126642000,-11834.77204959,0.000189,2]
[426034032,1782126642000,-1119.41442965,0.000188,2]
[426034028,1782126642000,-668.93255661,0.000186,2]
[426034026,1782126642000,-10124.49857205,0.000186,2]
[426034024,1782126642000,-153.75535464,0.0001855,2]
[426034030,1782126642000,-1844.21112014,0.000188,2]
[426034111,1782126643000,-500.0,0.00019,2]
[426034116,1782126643000,-500.0,0.00019,2]
[426034107,1782126643000,-500.0,0.00019,2]
[426034093,1782126643000,-500.0,0.00019,2]
[426034105,1782126643000,-500.0,0.00019,2]
[426034103,1782126643000,-500.0,0.00019,2]
[426034100,1782126643000,-500.0,0.00019,2]
[426034098,1782126643000,-500.0,0.00019,2]
[426034097,1782126643000,-500.0,0.00019,2]
[426034113,1782126643000,-500.0,0.00019,2]
[426034104,1782126643000,-500.0,0.00019,2]
[426034114,1782126643000,-500.0,0.00019,2]
[426034126,1782126643000,-500.0,0.00019,2]
[426034112,1782126643000,-500.0,0.00019,2]
[426034118,1782126643000,-500.0,0.00019,2]
[426034119,1782126643000,-500.0,0.00019,2]
[426034121,1782126643000,-500.0,0.00019,2]
[426034124,1782126643000,-500.0,0.00019,2]
[426034136,1782126643000,-500.0,0.00019,2]
[426034128,1782126643000,-500.0,0.00019,2]
[426034137,1782126643000,-500.0,0.00019,2]
[426034130,1782126643000,-500.0,0.00019,2]
[426034139,1782126643000,-500.0,0.00019,2]
[426034131,1782126643000,-500.0,0.00019,2]
[426034096,1782126643000,-500.0,0.00019,2]
[426034110,1782126643000,-500.0,0.00019,2]
[426034094,1782126643000,-500.0,0.00019,2]
[426034133,1782126643000,-500.0,0.00019,2]
[426034092,1782126643000,-500.0,0.00019,2]
[426034065,1782126643000,-500.0,0.00019,2]
[426034067,1782126643000,-500.0,0.00019,2]
[426034066,1782126643000,-500.0,0.00019,2]
[426034068,1782126643000,-500.0,0.00019,2]
[426034070,1782126643000,-500.0,0.00019,2]
[426034069,1782126643000,-500.0,0.00019,2]
[426034075,1782126643000,-500.0,0.00019,2]
[426034076,1782126643000,-500.0,0.00019,2]
[426034072,1782126643000,-500.0,0.00019,2]
[426034073,1782126643000,-500.0,0.00019,2]
[426034071,1782126643000,-500.0,0.00019,2]
[426034078,1782126643000,-500.0,0.00019,2]
[426034095,1782126643000,-500.0,0.00019,2]
[426034074,1782126643000,-500.0,0.00019,2]
[426034081,1782126643000,-500.0,0.00019,2]
[426034080,1782126643000,-500.0,0.00019,2]
[426034079,1782126643000,-500.0,0.00019,2]
[426034082,1782126643000,-500.0,0.00019,2]
[426034084,1782126643000,-500.0,0.00019,2]
[426034085,1782126643000,-500.0,0.00019,2]
[426034087,1782126643000,-500.0,0.00019,2]
[426034089,1782126643000,-500.0,0.00019,2]
[426034083,1782126643000,-500.0,0.00019,2]
[426034086,1782126643000,-500.0,0.00019,2]
[426034090,1782126643000,-500.0,0.00019,2]
[426034091,1782126643000,-500.0,0.00019,2]
[426034077,1782126643000,-500.0,0.00019,2]
[426034143,1782126643000,-500.0,0.00019,2]
[426034088,1782126643000,-500.0,0.00019,2]
[426034147,1782126643000,-500.0,0.00019,2]
[426034212,1782126643000,-10124.49857205,0.000196,2]
[426034206,1782126643000,-1119.41442965,0.000194,2]
[426034258,1782126643000,-151.0,0.0002,2]
[426034208,1782126643000,-418.0,0.00019452,2]
[426034214,1782126643000,-1119.41442965,0.000196,2]
[426034218,1782126643000,-6082.0,0.00019633,2]
[426034220,1782126643000,-3648.0,0.00019633,2]
[426034222,1782126643000,-500.0,0.00019634,2]
[426034216,1782126643000,-1934.38338736,0.00019624,2]
[426034224,1782126643000,-4282.80432586,0.00019655,2]
[426034238,1782126643000,-2072.92,0.00019968,2]
[426034235,1782126643000,-164.29860884,0.00019879,2]
[426034204,1782126643000,-10124.49857205,0.000194,2]
[426034242,1782126643000,-899.999999,0.0002,2]
[426034240,1782126643000,-45618.45,0.00019968,2]
[426034226,1782126643000,-5794.7769,0.00019655,2]
[426034230,1782126643000,-10124.49857205,0.000198,2]
[426034233,1782126643000,-1119.41442965,0.000198,2]
[426034250,1782126643000,-752.4937536,0.0002,2]
[426034246,1782126643000,-20000.0,0.0002,2]
[426034248,1782126643000,-400.0,0.0002,2]
[426034244,1782126643000,-186.565806,0.0002,2]
[426034252,1782126643000,-10124.49857205,0.0002,2]
[426034256,1782126643000,-436.0,0.0002,2]
[426034254,1782126643000,-672.0,0.0002,2]
[426034260,1782126643000,-2000.0,0.0002,7]
[426034228,1782126643000,-1844.21112014,0.000198,2]
[426034210,1782126643000,-1844.21112014,0.000196,2]
[426034141,1782126643000,-500.0,0.00019,2]
[426034200,1782126643000,-181.85,0.00019355,7]
[426034202,1782126643000,-1844.21112014,0.000194,2]
[426034145,1782126643000,-500.0,0.00019,2]
[426034149,1782126643000,-500.0,0.00019,2]
[426034151,1782126643000,-500.0,0.00019,2]
[426034161,1782126643000,-151.0,0.00019,2]
[426034153,1782126643000,-500.0,0.00019,2]
[426034159,1782126643000,-168.115348,0.00019,2]
[426034157,1782126643000,-441.218911,0.00019,2]
[426034163,1782126643000,-190.526948,0.00019,2]
[426034165,1782126643000,-190.526948,0.00019,2]
[426034169,1782126643000,-190.526948,0.00019,2]
[426034167,1782126643000,-190.526948,0.00019,2]
[426034171,1782126643000,-151.0,0.00019,2]
[426034155,1782126643000,-500.0,0.00019,2]
[426034188,1782126643000,-1125.00423533,0.00019178,2]
[426034173,1782126643000,-365.9214821,0.0001901,7]
[426034194,1782126643000,-1119.41442965,0.000192,2]
[426034196,1782126643000,-2000.0,0.000192,2]
[426034192,1782126643000,-10124.49857205,0.000192,2]
[426034185,1782126643000,-2862.95156935,0.00019155,2]
[426034183,1782126643000,-1865.36488656,0.00019076,2]
[426034198,1782126643000,-151.0,0.00019304,2]
[426034182,1782126643000,-500.0,0.00019063,2]
[426034177,1782126643000,-4068.0,0.00019032,5]
[426034175,1782126643000,-3616.0,0.00019032,5]
[426034190,1782126643000,-1844.21112014,0.000192,2]
[426034179,1782126643000,-4161.0,0.00019032,5]
[426034334,1782126644000,-151.0,0.00020172,2]
[426034336,1782126644000,-500.0,0.00020172,2]
[426034338,1782126644000,-1328.27659266,0.00020172,2]
[426034340,1782126644000,-151.0,0.00020172,2]
[426034344,1782126644000,-1377.42282658,0.00020172,2]
[426034346,1782126644000,-151.0,0.00020172,2]
[426034332,1782126644000,-157.57092906,0.00020172,2]
[426034330,1782126644000,-151.0,0.00020172,2]
[426034328,1782126644000,-1280.88388877,0.00020172,2]
[426034326,1782126644000,-500.0,0.00020172,2]
[426034322,1782126644000,-1235.18214925,0.00020172,2]
[426034342,1782126644000,-500.0,0.00020172,2]
[426034348,1782126644000,-500.0,0.00020172,2]
[426034375,1782126644000,-151.0,0.00020172,2]
[426034356,1782126644000,-151.0,0.00020172,2]
[426034354,1782126644000,-500.0,0.00020172,2]
[426034359,1782126644000,-500.0,0.00020172,2]
[426034357,1782126644000,-1481.2378076,0.00020172,2]
[426034361,1782126644000,-500.0,0.00020172,2]
[426034371,1782126644000,-151.0,0.00020172,2]
[426034373,1782126644000,-152.0,0.00020172,2]
[426034368,1782126644000,-151.0,0.00020172,2]
[426034377,1782126644000,-2005.9555727,0.00020172,2]
[426034382,1782126644000,-500.0,0.00020172,2]
[426034380,1782126644000,-500.0,0.00020172,2]
[426034385,1782126644000,-152.0,0.00020172,2]
[426034325,1782126644000,-327.98278615,0.00020172,2]
[426034352,1782126644000,-151.0,0.00020172,2]
[426034321,1782126644000,-578.20924308,0.00020172,2]
[426034287,1782126644000,-418.0,0.00020136,2]
[426034307,1782126644000,-151.0,0.00020172,2]
[426034265,1782126644000,-181.0,0.0002,2]
[426034267,1782126644000,-213.91,0.0002,2]
[426034262,1782126644000,-180.0,0.0002,2]
[426034269,1782126644000,-826.0,0.0002,2]
[426034273,1782126644000,-156.0,0.0002,2]
[426034275,1782126644000,-166.0,0.0002,2]
[426034271,1782126644000,-1115.0,0.0002,2]
[426034289,1782126644000,-200.0,0.00020172,2]
[426034291,1782126644000,-358.19769023,0.00020172,2]
[426034293,1782126644000,-531.81699916,0.00020172,2]
[426034285,1782126644000,-16575.22346195,0.00020125,2]
[426034279,1782126644000,-555.0,0.0002,2]
[426034281,1782126644000,-803.44,0.0002,2]
[426034277,1782126644000,-501.0,0.0002,2]
[426034283,1782126644000,-205.0,0.0002,2]
[426034378,1782126644000,-1536.04360648,0.00020172,2]
[426034295,1782126644000,-151.0,0.00020172,2]
[426034297,1782126644000,-151.0,0.00020172,2]
[426034299,1782126644000,-174.61919141,0.00020172,2]
[426034301,1782126644000,-1030.0,0.00020172,2]
[426034319,1782126644000,-151.0,0.00020172,2]
[426034303,1782126644000,-151.0,0.00020172,2]
[426034317,1782126644000,-1191.11104074,0.00020172,2]
[426034313,1782126644000,-151.0,0.00020172,2]
[426034311,1782126644000,-695.39793187,0.00020172,2]
[426034315,1782126644000,-1148.61238259,0.00020172,2]
[426034309,1782126644000,-1107.63007,0.00020172,2]
[426034305,1782126644000,-1068.11,0.00020172,2]
[426034384,1782126644000,-151.0,0.00020172,2]
[426034350,1782126644000,-1428.38747117,0.00020172,2]
[426034383,1782126644000,-151.0,0.00020172,2]
[426034418,1782126644000,-500.0,0.00020172,2]
[426034422,1782126644000,-500.0,0.00020172,2]
[426034421,1782126644000,-151.0,0.00020172,2]
[426034420,1782126644000,-1980.8648231,0.00020172,2]
[426034424,1782126644000,-151.0,0.00020172,2]
[426034423,1782126644000,-2054.15682156,0.00020172,2]
[426034429,1782126644000,-151.0,0.00020172,2]
[426034425,1782126644000,-151.0,0.00020172,2]
[426034426,1782126644000,-500.0,0.00020172,2]
[426034428,1782126644000,-152.0,0.00020172,2]
[426034427,1782126644000,-151.0,0.00020172,2]
[426034434,1782126644000,-500.0,0.00020172,2]
[426034431,1782126644000,-151.0,0.00020172,2]
[426034419,1782126644000,-151.0,0.00020172,2]
[426034438,1782126644000,-152.0,0.00020172,2]
[426034433,1782126644000,-151.0,0.00020172,2]
[426034432,1782126644000,-152.0,0.00020172,2]
[426034430,1782126644000,-500.0,0.00020172,2]
[426034436,1782126644000,-269.6725767,0.00020172,2]
[426034435,1782126644000,-152.0,0.00020172,2]
[426034439,1782126644000,-20000.0,0.000202,2]
[426034440,1782126644000,-752.4937536,0.000202,2]
[426034442,1782126644000,-500.0,0.00020223,2]
[426034443,1782126644000,-531.81699916,0.00020227,2]
[426034441,1782126644000,-10124.49857205,0.000202,2]
[426034386,1782126644000,-1592.87721992,0.00020172,2]
[426034444,1782126644000,-151.0,0.00020227,2]
[426034446,1782126644000,-531.81699916,0.00020282,2]
[426034437,1782126644000,-152.0,0.00020172,2]
[426034417,1782126644000,-152.0,0.00020172,2]
[426034445,1782126644000,-821.26435144,0.00020274,2]
[426034416,1782126644000,-151.0,0.00020172,2]
[426034415,1782126644000,-1910.18787185,0.00020172,2]
[426034387,1782126644000,-500.0,0.00020172,2]
[426034390,1782126644000,-152.0,0.00020172,2]
[426034389,1782126644000,-151.0,0.00020172,2]
[426034388,1782126644000,-500.0,0.00020172,2]
[426034393,1782126644000,-500.0,0.00020172,2]
[426034392,1782126644000,-201.93286098,0.00020172,2]
[426034395,1782126644000,-500.0,0.00020172,2]
[426034394,1782126644000,-1651.81367706,0.00020172,2]
[426034396,1782126644000,-847.53135692,0.00020172,2]
[426034397,1782126644000,-152.0,0.00020172,2]
[426034398,1782126644000,-151.0,0.00020172,2]
[426034399,1782126644000,-1712.93078311,0.00020172,2]
[426034401,1782126644000,-151.0,0.00020172,2]
[426034391,1782126644000,-151.0,0.00020172,2]
[426034403,1782126644000,-1776.30922209,0.00020172,2]
[426034412,1782126644000,-152.0,0.00020172,2]
[426034413,1782126644000,-151.0,0.00020172,2]
[426034410,1782126644000,-500.0,0.00020172,2]
[426034406,1782126644000,-152.0,0.00020172,2]
[426034405,1782126644000,-151.0,0.00020172,2]
[426034404,1782126644000,-500.0,0.00020172,2]
[426034414,1782126644000,-500.0,0.00020172,2]
[426034409,1782126644000,-1842.0326633,0.00020172,2]
[426034407,1782126644000,-500.0,0.00020172,2]
[426034408,1782126644000,-151.0,0.00020172,2]
[426034400,1782126644000,-500.0,0.00020172,2]
[426034402,1782126644000,-500.0,0.00020172,2]
[426034411,1782126644000,-151.0,0.00020172,2]
[426034487,1782126645000,-151.0,0.00020777,2]
[426034486,1782126645000,-531.81699924,0.00020777,2]
[426034485,1782126645000,-151.0,0.00020722,2]
[426034484,1782126645000,-531.81699916,0.00020722,2]
[426034483,1782126645000,-847.53135692,0.0002072,2]
[426034479,1782126645000,-151.0,0.0002072,2]
[426034482,1782126645000,-209.40437684,0.0002072,2]
[426034480,1782126645000,-151.0,0.0002072,2]
[426034478,1782126645000,-157.5709291,0.0002072,2]
[426034489,1782126645000,-752.4937536,0.000208,2]
[426034481,1782126645000,-2080.17592889,0.0002072,2]
[426034477,1782126645000,-181.08010149,0.0002072,2]
[426034495,1782126645000,-389.0,0.00020979,7]
[426034491,1782126645000,-209.500386,0.00020821,2]
[426034490,1782126645000,-10124.49857205,0.000208,2]
[426034492,1782126645000,-499.45360619,0.0002083,2]
[426034493,1782126645000,-1779.0,0.000209,2]
[426034494,1782126645000,-785.0,0.00020939,2]
[426034500,1782126645000,-436.0,0.00021,2]
[426034496,1782126645000,-151.0,0.00020994,2]
[426034497,1782126645000,-20000.0,0.00021,2]
[426034498,1782126645000,-1055.92431775,0.00021,2]
[426034499,1782126645000,-672.0,0.00021,2]
[426034501,1782126645000,-180.0,0.00021,2]
[426034502,1782126645000,-181.0,0.00021,2]
[426034476,1782126645000,-151.0,0.0002072,2]
[426034488,1782126645000,-20000.0,0.000208,2]
[426034475,1782126645000,-200.0,0.0002072,2]
[426034461,1782126645000,-531.81699916,0.00020557,2]
[426034470,1782126645000,-151.0,0.00020667,2]
[426034503,1782126645000,-826.0,0.00021,2]
[426034448,1782126645000,-531.81699916,0.00020337,2]
[426034450,1782126645000,-436.1,0.00020381,2]
[426034449,1782126645000,-151.0,0.00020337,2]
[426034447,1782126645000,-151.0,0.00020282,2]
[426034451,1782126645000,-531.81699916,0.00020392,2]
[426034453,1782126645000,-20000.0,0.000204,2]
[426034452,1782126645000,-151.0,0.00020392,2]
[426034454,1782126645000,-752.4937536,0.000204,2]
[426034455,1782126645000,-10124.49857205,0.000204,2]
[426034456,1782126645000,-151.0,0.00020446,2]
[426034460,1782126645000,-151.0,0.00020502,2]
[426034474,1782126645000,-358.19769023,0.0002072,2]
[426034458,1782126645000,-151.0,0.00020447,2]
[426034459,1782126645000,-531.81699916,0.00020502,2]
[426034464,1782126645000,-752.4937536,0.000206,2]
[426034462,1782126645000,-151.0,0.00020557,2]
[426034463,1782126645000,-20000.0,0.000206,2]
[426034466,1782126645000,-785.0,0.00020606,2]
[426034465,1782126645000,-10124.49857205,0.000206,2]
[426034467,1782126645000,-531.81699916,0.00020612,2]
[426034468,1782126645000,-151.0,0.00020612,2]
[426034469,1782126645000,-531.81699916,0.00020667,2]
[426034471,1782126645000,-501.0,0.00020682,2]
[426034473,1782126645000,-837.26431755,0.00020703,2]
[426034472,1782126645000,-601.05380042,0.000207,2]
[426034457,1782126645000,-531.81699916,0.00020447,2]
[426034504,1782126645000,-1115.0,0.00021,2]
[426034563,1782126645000,-200.0,0.00021816,2]
[426034507,1782126645000,-555.0,0.00021,2]
[426034543,1782126645000,-7100.0,0.000216,2]
[426034542,1782126645000,-16575.22346195,0.00021559,2]
[426034544,1782126645000,-1055.92431775,0.000216,2]
[426034545,1782126645000,-2009.0,0.000216,2]
[426034546,1782126645000,-785.0,0.00021603,2]
[426034548,1782126645000,-500.0,0.00021707,2]
[426034547,1782126645000,-803.44,0.00021611,2]
[426034551,1782126645000,-500.0,0.00021707,2]
[426034550,1782126645000,-500.0,0.00021707,2]
[426034552,1782126645000,-500.0,0.00021707,2]
[426034549,1782126645000,-500.0,0.00021707,2]
[426034553,1782126645000,-500.0,0.00021707,2]
[426034541,1782126645000,-151.0,0.00021542,2]
[426034555,1782126645000,-500.0,0.00021707,2]
[426034556,1782126645000,-500.0,0.00021707,2]